bitfinex-derivatives/quotes_BTCF0:USTF0_20210111
["timestamp","ask_amount","ask_price","bid_price","bid_amount"]
[1610406676458,0.00882449,34679.0,34667.0,0.13632608]
[1610406676658,0.00882519,34678.0,34667.0,0.13632608]
[1610406676857,0.52810765,34678.0,34667.0,0.13632608]
[1610406677357,0.52804184,34680.0,34667.0,0.13632608]
[1610406677757,0.52804184,34680.0,34667.0,0.20840608]
[1610406677959,0.00882385,34685.0,34667.0,0.20840608]
[1610406678158,0.00882385,34685.0,34667.0,0.07208]
[1610406678359,0.52803202,34685.0,34667.0,0.07208]
[1610406678759,0.00882377,34683.0,34673.0,0.13632608]
[1610406679159,0.00882298,34685.0,34673.0,0.13632608]
[1610406679562,0.00882177,34687.0,34673.0,0.13632608]
[1610406679961,0.00882117,34689.0,34673.0,0.13632608]
[1610406680362,0.00881889,34697.0,34673.0,0.13632608]
[1610406680764,0.00881423,34702.0,34673.0,0.13632608]
[1610406680964,0.00881486,34700.0,34673.0,0.13632608]
[1610406681362,0.62239834,34703.0,34667.0,0.07208]
[1610406681363,0.00881365,34703.0,34667.0,0.07208]
[1610406681862,0.00881011,34704.0,34667.0,0.07208]
[1610406682166,0.42024081,34709.0,34667.0,0.07208]
[1610406682167,0.00880917,34708.0,34667.0,0.07208]
[1610406682764,0.00880278,34712.0,34707.0,0.13632608]
[1610406683169,1.17972466,34718.0,34707.0,0.13632608]
[1610406683170,0.00880213,34720.0,34707.0,0.13632608]
[1610406683667,0.00879731,34721.0,34707.0,0.13632608]
[1610406684066,0.0087967,34723.0,34707.0,0.13632608]
[1610406684367,0.5176252,34724.0,34707.0,0.13632608]
[1610406684368,0.00879657,34724.0,34707.0,0.13632608]
[1610406684569,0.00878898,34728.0,34707.0,0.13632608]
[1610406684767,0.00878898,34728.0,34715.0,3.6395]
[1610406684967,0.00878828,34732.0,34715.0,3.74375]
[1610406685267,0.00878828,34732.0,34731.0,0.13632608]
[1610406685467,0.00878632,34735.0,34731.0,0.13632608]
[1610406685766,0.00877461,34738.0,34732.0,0.664]
[1610406686165,0.00877419,34741.0,34732.0,0.664]
[1610406686668,0.51630106,34742.0,34732.0,0.664]
[1610406686669,0.00876023,34745.0,34732.0,0.664]
[1610406686868,0.00876023,34744.0,34732.0,0.664]
[1610406687167,0.13632608,34736.0,34735.0,0.13632608]
[1610406687368,0.0087607,34740.0,34735.0,0.13632608]
[1610406687569,0.00875038,34742.0,34735.0,0.13632608]
[1610406687970,0.00874985,34744.0,34735.0,0.13632608]
[1610406688168,0.00874985,34744.0,34732.0,0.664]
[1610406688369,0.00874985,34744.0,34725.0,0.09742]
[1610406688868,0.00874191,34736.0,34725.0,0.09742]
[1610406689268,0.00874252,34733.0,34725.0,0.09742]
[1610406689669,0.00873547,34734.0,34725.0,0.09742]
[1610406690169,0.75381932,34740.0,34725.0,0.09742]
[1610406690170,0.008735,34739.0,34725.0,0.09742]
[1610406690370,0.00873399,34734.0,34708.0,0.08296]
[1610406690569,0.10549399,34734.0,34708.0,0.08296]
[1610406690770,0.0087295,34729.0,34708.0,0.08296]
[1610406691069,0.00872941,34732.0,34708.0,0.08296]
[1610406691269,0.13632608,34724.0,34708.0,0.08296]
[1610406691672,0.0087278,34731.0,34708.0,0.08296]
[1610406691870,0.00872451,34733.0,34708.0,0.08296]
[1610406692271,0.00872445,34732.0,34708.0,0.08296]
[1610406692770,0.61013726,34734.0,34708.0,0.08296]
[1610406692771,0.10547901,34734.0,34708.0,0.08296]
[1610406693071,0.0087197,34730.0,34708.0,0.08296]
[1610406693570,0.00871956,34728.0,34710.0,0.13632608]
[1610406694875,0.10547115,34734.0,34710.0,0.13632608]
[1610406695175,0.09676,34734.0,34710.0,0.13632608]
[1610406695376,0.00871013,34738.0,34712.0,3.2511]
[1610406695777,0.00870321,34743.0,34712.0,3.2511]
[1610406696177,0.08972186,34748.0,34712.0,3.2511]
[1610406696680,0.0087,34752.0,34745.0,0.13632608]
[1610406697178,0.00869305,34753.0,34745.0,0.13632608]
[1610406697478,0.00357869,34753.0,34745.0,0.13632608]
[1610406697878,0.00357593,34754.0,34745.0,0.13632608]
[1610406698377,0.09264624,34753.0,34724.0,0.08692]
[1610406698578,0.51077668,34746.0,34724.0,0.08692]
[1610406698778,0.61510668,34746.0,34730.0,0.13632608]
[1610406698979,0.00357442,34742.0,34730.0,0.13632608]
[1610406699479,0.11658402,34746.0,34730.0,0.13632608]
[1610406699679,0.10433,34746.0,34730.0,0.13632608]
[1610406700081,0.10790162,34746.0,34730.0,0.13632608]
[1610406700583,0.00357051,34743.0,34730.0,0.13632608]
[1610406700882,0.10433,34746.0,34720.0,0.08087]
[1610406701184,0.10433,34746.0,34744.0,0.13632608]
[1610406702183,0.00356804,34751.0,34744.0,0.13632608]
[1610406702384,0.01222652,34759.0,34744.0,0.13632608]
[1610406702785,0.01221731,34770.0,34744.0,0.13632608]
[1610406703283,0.00356294,34771.0,34769.0,0.13632608]
[1610406703683,0.00355826,34777.0,34769.0,0.13632608]
[1610406703883,0.00355826,34777.0,34751.0,0.07955]
[1610406704086,0.00355777,34780.0,34765.0,4.0701]
[1610406704584,0.01219489,34782.0,34765.0,4.0701]
[1610406704885,0.00355306,34784.0,34765.0,4.0701]
[1610406705287,0.00355306,34784.0,34783.0,0.13632608]
[1610406705687,0.00354854,34788.0,34783.0,0.13632608]
[1610406705989,0.00354854,34788.0,34783.0,0.13457866]
[1610406706287,0.00354848,34789.0,34783.0,0.13457866]
[1610406706688,0.01215246,34791.0,34783.0,0.13457866]
[1610406707089,0.00354447,34791.0,34783.0,0.13457866]
[1610406707387,0.00354447,34791.0,34774.0,0.08168]
[1610406707388,0.13987055,34791.0,34790.0,0.13632608]
[1610406707588,0.64233966,34791.0,34790.0,0.13632608]
[1610406707990,0.64233966,34791.0,34774.0,0.08168]
[1610406708490,0.00354074,34789.0,34774.0,0.08168]
[1610406709594,0.13632608,34775.0,34771.0,0.13632608]
[1610406710094,0.00353602,34782.0,34771.0,0.13632608]
[1610406710493,0.00353378,34784.0,34771.0,0.13632608]
[1610406710693,0.00353378,34784.0,34765.0,0.1064]
[1610406710894,0.50499438,34786.0,34765.0,0.1064]
[1610406710895,0.00353364,34786.0,34765.0,0.1064]
[1610406711294,0.0035339,34783.0,34758.0,0.09542]
[1610406711696,0.13632608,34775.0,34774.0,0.13632608]
[1610406713596,0.00353029,34784.0,34779.0,0.13632608]
[1610406713797,0.00352869,34785.0,34765.0,0.07538]
[1610406714198,0.00352899,34783.0,34765.0,0.07538]
[1610406714598,0.01209817,34779.0,34765.0,0.07538]
[1610406715001,0.00352863,34779.0,34765.0,0.07538]
[1610406715402,0.01209783,34780.0,34765.0,0.07538]
[1610406715700,0.00352775,34782.0,34771.0,0.13632608]
[1610406716100,0.00352768,34783.0,34771.0,0.13457834]
[1610406716801,0.00352705,34785.0,34771.0,0.13457834]
[1610406717202,0.10995227,34787.0,34771.0,0.13457834]
[1610406717401,0.09786,34787.0,34771.0,0.13457834]
[1610406717702,0.0120876,34793.0,34786.0,0.13632608]
[1610406718002,0.00352555,34793.0,34786.0,0.13632608]
[1610406718202,0.23174608,34794.0,34773.0,0.10385]
[1610406719302,0.00352489,34793.0,34773.0,0.10385]
[1610406719707,0.24030652,34794.0,34773.0,0.10385]
[1610406719708,0.09542,34794.0,34788.0,0.13632608]
[1610406719902,0.01208671,34795.0,34788.0,0.13632608]
[1610406720202,0.01208609,34797.0,34788.0,0.04897312]
[1610406720409,0.79845516,34799.0,34788.0,0.04897312]
[1610406720410,0.00352513,34798.0,34788.0,0.04897312]
[1610406720902,0.29822558,34799.0,34773.0,0.10385]
[1610406721203,0.2947,34799.0,34773.0,0.10385]
[1610406721403,0.36944,34799.0,34773.0,0.10385]
[1610406721704,0.13632608,34783.0,34782.0,0.13632608]
[1610406726308,0.00353701,34797.0,34782.0,0.13632608]
[1610406726507,0.00858048,34798.0,34782.0,0.13632608]
[1610406726508,0.01214245,34796.0,34782.0,0.13632608]
[1610406726908,0.00354123,34797.0,34782.0,0.13632608]
[1610406727708,0.00354123,34797.0,34791.0,0.13632608]
[1610406727908,0.00354617,34796.0,34791.0,0.13632608]
[1610406728208,0.00354617,34796.0,34791.0,0.13457935]
[1610406728810,0.00355025,34797.0,34791.0,0.13457935]
[1610406729010,0.00355025,34797.0,34773.0,0.10385]
[1610406729210,0.01217247,34797.0,34765.0,0.07538]
[1610406729513,0.01217247,34797.0,34764.0,3.9369]
[1610406729712,0.01218137,34796.0,34787.0,0.13632608]
[1610406729913,0.00862847,34796.0,34787.0,0.13632608]
[1610406730116,0.00355288,34797.0,34787.0,0.13632608]
[1610406730818,0.00355556,34796.0,34787.0,0.13632608]
[1610406731321,0.00355542,34798.0,34787.0,0.13632608]
[1610406731518,0.38162971,34799.0,34787.0,0.13632608]
[1610406731716,0.13632608,34788.0,34787.0,0.13632608]
[1610406732721,0.37299824,34799.0,34787.0,0.13632608]
[1610406733522,0.38164515,34799.0,34787.0,0.13632608]
[1610406733720,0.13632608,34788.0,34787.0,0.13632608]
[1610406734429,0.0035605,34798.0,34787.0,0.13632608]
[1610406734622,0.38165063,34799.0,34787.0,0.13632608]
[1610406734824,0.38165063,34799.0,34778.0,0.07522]
[1610406735022,0.36944,34799.0,34778.0,0.07522]
[1610406735522,0.36944,34799.0,34764.0,3.9369]
[1610406735823,0.01221993,34802.0,34798.0,0.13632608]
[1610406736221,0.00356642,34804.0,34798.0,0.13632608]
[1610406736624,0.00356998,34803.0,34798.0,0.13632608]
[1610406736922,0.01223994,34803.0,34794.0,0.11235]
[1610406737222,0.01223994,34803.0,34786.0,4.7421]
[1610406737423,0.00356998,34803.0,34786.0,4.7421]
[1610406737723,0.00357356,34802.0,34796.0,0.13632608]
[1610406738826,0.00357729,34803.0,34796.0,0.13632608]
[1610406739125,0.00357729,34803.0,34786.0,4.7421]
[1610406739527,0.00358154,34801.0,34786.0,4.7421]
[1610406739825,0.00358154,34801.0,34790.0,0.13632608]
[1610406740125,0.00358154,34801.0,34752.0,0.2752]
[1610406740126,0.00358154,34800.0,34768.0,4.0728]
[1610406740425,0.01228047,34800.0,34768.0,4.0728]
[1610406740828,0.00358551,34791.0,34768.0,4.0728]
[1610406741026,0.09950551,34791.0,34768.0,4.0728]
[1610406741227,0.00358584,34787.0,34768.0,4.0728]
[1610406741526,0.01229787,34788.0,34768.0,4.0728]
[1610406741726,0.01229787,34788.0,34783.0,0.13632608]
[1610406742026,0.10822528,34791.0,34768.0,4.1824]
[1610406742427,0.09592,34791.0,34768.0,4.1824]
[1610406742828,0.00359207,34789.0,34768.0,4.1824]
[1610406743027,0.01231567,34789.0,34768.0,4.1824]
[1610406743430,0.01231556,34790.0,34768.0,4.1824]
[1610406743828,0.09592,34791.0,34777.0,0.13632608]
[1610406744935,0.00359535,34795.0,34777.0,0.13632608]
[1610406745133,0.01232644,34797.0,34777.0,0.13632608]
[1610406745634,0.01232945,34799.0,34777.0,0.13632608]
[1610406745832,0.01232945,34799.0,34786.0,0.13632608]
[1610406746434,0.00359596,34798.0,34786.0,0.13632608]
[1610406747135,0.00359619,34799.0,34786.0,0.13632608]
[1610406747439,0.00359619,34799.0,34786.0,0.21582608]
[1610406747638,0.00359684,34800.0,34786.0,0.21582608]
[1610406747836,0.00359684,34800.0,34795.0,0.13632608]
[1610406748036,0.0123302,34807.0,34795.0,0.13632608]
[1610406748437,0.00359631,34807.0,34795.0,0.13632608]
[1610406749042,0.01232903,34808.0,34795.0,0.13632608]
[1610406749441,0.00359592,34807.0,34795.0,0.13632608]
[1610406749740,0.00359592,34807.0,34799.0,0.13632608]
[1610406750741,0.01233721,34807.0,34799.0,0.13632608]
[1610406751041,0.00359957,34805.0,34799.0,0.13632608]
[1610406751541,0.01234053,34805.0,34799.0,0.13632608]
[1610406751741,0.13632608,34800.0,34799.0,0.13632608]
[1610406752544,0.13632608,34800.0,34793.0,0.09784]
[1610406752742,0.13632608,34800.0,34786.0,0.0795]
[1610406753041,0.13632608,34800.0,34782.0,4.0988]
[1610406753845,0.13632608,34800.0,34775.0,0.08097]
[1610406754143,0.0123717,34800.0,34764.0,3.7642]
[1610406754345,0.00360906,34794.0,34764.0,3.7642]
[1610406754543,0.13632608,34765.0,34759.0,0.13632608]
[1610406755043,0.2816,34787.0,34746.0,3.87743]
[1610406755245,0.00361375,34786.0,34746.0,3.87743]
[1610406755445,0.0124007,34784.0,34746.0,3.87743]
[1610406756044,0.00361708,34783.0,34746.0,3.87743]
[1610406756247,0.01240142,34783.0,34746.0,3.87743]
[1610406756446,0.01240142,34783.0,34769.0,0.13632608]
[1610406756845,0.49675863,34784.0,34769.0,0.13632608]
[1610406757047,0.62057366,34785.0,34769.0,0.13632608]
[1610406757548,0.62064447,34786.0,34769.0,0.13632608]
[1610406757948,0.6209313,34785.0,34769.0,0.13632608]
[1610406758248,1.0403002,34786.0,34769.0,0.13632608]
[1610406758448,0.13632608,34776.0,34773.0,0.13632608]
[1610406758748,0.62141905,34784.0,34773.0,3.61142608]
[1610406759051,0.6213929,34789.0,34773.0,3.61142608]
[1610406759348,0.62139459,34790.0,34773.0,3.61142608]
[1610406759751,0.62182137,34794.0,34773.0,3.61142608]
[1610406759949,0.62182137,34794.0,34773.0,0.13632608]
[1610406760149,0.62178113,34800.0,34785.0,4.4785]
[1610406760349,0.62178113,34800.0,34785.0,4.5789]
[1610406760551,0.62240718,34803.0,34799.0,0.13632608]
[1610406760749,0.62240718,34803.0,34798.0,0.10614]
[1610406760950,0.62230189,34809.0,34798.0,0.10614]
[1610406761150,0.62230189,34809.0,34798.0,0.66464]
[1610406761349,0.62204483,34812.0,34798.0,0.66464]
[1610406762052,0.62272007,34811.0,34798.0,0.66464]
[1610406762553,0.76085201,34811.0,34809.0,0.13632608]
[1610406762852,0.62301408,34811.0,34809.0,0.13632608]
[1610406763352,0.6230337,34810.0,34809.0,0.13632608]
[1610406764653,0.75935978,34810.0,34809.0,0.13632608]
[1610406765658,0.75935978,34810.0,34798.0,0.66464]
[1610406765856,1.93941525,34810.0,34798.0,0.66464]
[1610406766056,0.62266894,34806.0,34798.0,0.66464]
[1610406766660,0.62255087,34807.0,34798.0,0.66464]
[1610406766864,0.62255087,34807.0,34798.0,0.10614]
[1610406767057,0.62266516,34804.0,34785.0,0.1004]
[1610406767258,0.70744516,34804.0,34781.0,3.2866]
[1610406767462,0.62275702,34796.0,34781.0,3.2866]
[1610406767859,0.62276957,34793.0,34781.0,3.2866]
[1610406768467,0.62281069,34792.0,34781.0,3.2866]
[1610406768662,0.62281069,34792.0,34791.0,0.13632608]
[1610406768859,0.13632608,34793.0,34791.0,0.13632608]
[1610406769363,0.62268526,34798.0,34784.0,0.10591]
[1610406769659,0.62277291,34800.0,34784.0,0.10591]
[1610406770461,0.6228545,34798.0,34784.0,0.10591]
[1610406770760,0.13632608,34785.0,34784.0,0.10591]
[1610406771660,0.62315775,34796.0,34784.0,0.10591]
[1610406772260,0.62315944,34797.0,34783.0,0.13632608]
[1610406772661,0.62315944,34797.0,34781.0,3.2866]
[1610406772961,0.62332586,34793.0,34781.0,3.2866]
[1610406773161,0.72330586,34793.0,34781.0,3.2866]
[1610406773761,0.09998,34793.0,34781.0,3.2866]
[1610406774662,0.09998,34793.0,34785.0,0.13632608]
[1610406775863,1.48679707,34793.0,34785.0,0.13632608]
[1610406776667,0.13632608,34786.0,34785.0,0.13632608]
[1610406777367,0.09998,34793.0,34785.0,0.13632608]
[1610406778370,1.38741938,34795.0,34785.0,0.13632608]
[1610406778571,1.38741938,34795.0,34793.0,0.13632608]
[1610406780571,0.13632608,34794.0,34793.0,0.13632608]
[1610406781071,1.38741938,34795.0,34775.0,0.08731]
[1610406781372,0.5385,34794.0,34764.0,4.0157]
[1610406781573,1.38809939,34792.0,34758.0,0.10191]
[1610406781772,3.9296,34790.0,34749.0,3.5642]
[1610406781973,1.38835285,34786.0,34721.0,2.4680066]
[1610406782274,1.388493,34783.0,34718.0,2.4713842]
[1610406782676,1.38861048,34780.0,34716.0,2.47399284]
[1610406783073,1.3888813,34775.0,34711.0,2.47741166]
[1610406783272,1.4599513,34775.0,34711.0,2.47741166]
[1610406783573,1.3885919,34766.0,34701.0,2.48402828]
[1610406783772,1.4639219,34766.0,34701.0,2.48402828]
[1610406783973,3.3132,34753.0,34697.0,2.48722864]
[1610406784174,3.40614,34753.0,34697.0,2.48722864]
[1610406784474,3.40614,34753.0,34672.0,3.26448759]
[1610406784475,3.40614,34753.0,34690.0,2.4922698]
[1610406784675,0.62446746,34748.0,34711.0,0.21725608]
[1610406784875,3.98376746,34748.0,34711.0,0.21725608]
[1610406785175,3.98376746,34748.0,34711.0,0.08093]
[1610406785176,0.62454974,34745.0,34711.0,0.08093]
[1610406785376,2.22063974,34745.0,34711.0,0.08093]
[1610406785579,4.42,34731.0,34711.0,0.08093]
[1610406785875,4.42,34731.0,34691.0,4.3656]
[1610406785876,0.72045675,34731.0,34691.0,3.9615]
[1610406786277,0.75536,34731.0,34691.0,4.04285]
[1610406786477,0.09686,34731.0,34691.0,0.08135]
[1610406786678,0.13632608,34692.0,34691.0,0.08135]
[1610406787078,4.37772608,34692.0,34691.0,0.08135]
[1610406787777,0.13632608,34692.0,34645.0,0.2708]
[1610406787978,3.8675,34680.0,34640.0,3.3461]
[1610406788777,3.8675,34680.0,34656.0,0.13632608]
[1610406788978,3.8675,34680.0,34656.0,0.0726]
[1610406789779,4.4223,34665.0,34656.0,0.0726]
[1610406790279,4.4023,34665.0,34656.0,0.0726]
[1610406790580,4.4023,34665.0,34634.0,0.03]
[1610406790781,0.13632608,34657.0,34634.0,0.03]
[1610406790981,3.5151,34655.0,34634.0,0.03]
[1610406791680,0.11191,34671.0,34634.0,0.03]
[1610406791880,0.11191,34671.0,34634.0,0.10662]
[1610406792381,0.08561,34678.0,34634.0,0.10662]
[1610406792781,0.69353802,34691.0,34634.0,0.10662]
[1610406792782,0.13632608,34674.0,34673.0,0.13632608]
[1610406792983,0.0788,34691.0,34673.0,0.13632608]
[1610406793182,0.2749,34696.0,34668.0,0.11401]
[1610406793383,4.7655,34703.0,34668.0,0.11401]
[1610406794984,4.7655,34703.0,34674.0,0.13632608]
[1610406795286,0.50922605,34715.0,34676.0,4.3198]
[1610406795485,0.50859658,34716.0,34676.0,4.3198]
[1610406795686,0.50859658,34716.0,34676.0,4.42318]
[1610406795888,0.50850151,34719.0,34676.0,4.42318]
[1610406796087,0.50850151,34719.0,34676.0,0.10338]
[1610406796287,3.6464,34709.0,34676.0,0.10338]
[1610406796588,3.75103,34709.0,34676.0,0.10338]
[1610406796988,0.13632608,34696.0,34676.0,0.10338]
[1610406798887,0.1118,34699.0,34678.0,0.13632608]
[1610406799087,0.13632608,34682.0,34678.0,0.13632608]
[1610406799488,0.1118,34699.0,34676.0,0.10338]
[1610406800794,0.1118,34699.0,34668.0,0.11401]
[1610406800992,0.1118,34699.0,34676.0,0.09999]
[1610406803096,0.13632608,34681.0,34679.0,0.13632608]
[1610406803295,0.13632608,34681.0,34676.0,0.09999]
[1610406804794,0.10352,34691.0,34676.0,0.09999]
[1610406805395,0.1118,34699.0,34676.0,0.09999]
[1610406805598,3.2763,34707.0,34676.0,0.09999]
[1610406805897,0.50481873,34713.0,34676.0,0.09999]
[1610406806095,0.50481873,34713.0,34675.0,3.88698]
[1610406806496,0.13632608,34712.0,34703.0,0.13632608]
[1610406806897,0.09215,34724.0,34703.0,0.13632608]
[1610406807097,0.09215,34724.0,34703.0,0.24052608]
[1610406807699,0.50421101,34739.0,34703.0,0.24052608]
[1610406807898,0.50422223,34738.0,34712.0,4.1469]
[1610406808099,0.50422223,34738.0,34712.0,4.21677]
[1610406808298,0.50406083,34743.0,34712.0,4.21677]
[1610406808697,0.73921084,34748.0,34712.0,4.21677]
[1610406808698,0.13632608,34748.0,34742.0,0.13632608]
[1610406808997,0.83992992,34763.0,34742.0,0.23758608]
[1610406808998,0.50393537,34763.0,34742.0,0.23758608]
[1610406809498,0.50399574,34770.0,34742.0,0.23758608]
[1610406809698,0.50400667,34771.0,34742.0,0.10126]
[1610406810098,0.50393431,34775.0,34742.0,0.10126]
[1610406810500,0.50408872,34777.0,34742.0,0.10126]
[1610406810701,0.13632608,34757.0,34755.0,0.13632608]
[1610406810899,0.50406104,34779.0,34742.0,0.10126]
[1610406811400,0.50401545,34781.0,34742.0,0.10126]
[1610406811604,0.50412058,34786.0,34752.0,4.167]
[1610406811800,0.50412058,34786.0,34752.0,4.261]
[1610406812002,0.5040242,34793.0,34752.0,4.261]
[1610406812403,0.60479545,34795.0,34752.0,4.261]
[1610406812404,0.50417578,34791.0,34752.0,0.094]
[1610406812901,0.57657484,34787.0,34759.0,4.6622]
[1610406813102,0.57657484,34787.0,34759.0,4.74627]
[1610406813603,0.07232,34787.0,34759.0,4.74627]
[1610406813803,0.07232,34787.0,34759.0,0.08407]
[1610406814103,0.50413675,34799.0,34768.0,0.07708]
[1610406814303,0.50413675,34799.0,34769.0,3.8122]
[1610406814504,0.50415156,34808.0,34769.0,3.8122]
[1610406815005,0.73934389,34812.0,34768.0,0.07708]
[1610406815006,0.50419341,34804.0,34768.0,0.07708]
[1610406815206,0.50419341,34804.0,34774.0,3.7006]
[1610406815506,0.5041957,34802.0,34774.0,3.7006]
[1610406815707,1.158705,34807.0,34768.0,0.07708]
[1610406815708,0.50415179,34807.0,34768.0,0.07708]
[1610406816107,0.50411915,34804.0,34768.0,0.07708]
[1610406816706,0.08221,34804.0,34768.0,0.07708]
[1610406817206,0.50410428,34803.0,34768.0,0.07708]
[1610406817405,0.50410428,34803.0,34802.0,0.13632608]
[1610406817906,0.21853608,34804.0,34777.0,4.2027]
[1610406818307,0.21853608,34804.0,34775.0,0.07522]
[1610406819207,0.21853608,34804.0,34776.0,0.5776]
[1610406819507,0.21853608,34804.0,34784.0,0.13632608]
[1610406819508,0.08221,34804.0,34784.0,0.13632608]
[1610406819707,0.08221,34804.0,34784.0,0.22362608]
[1610406820308,0.50385776,34804.0,34784.0,0.22362608]
[1610406820508,0.50388551,34808.0,34784.0,0.22362608]
[1610406820910,0.50386883,34812.0,34784.0,0.22362608]
[1610406821512,0.5038593,34816.0,34791.0,0.13632608]
[1610406821709,0.5038593,34816.0,34791.0,0.22005608]
[1610406821910,0.50394852,34815.0,34791.0,0.22005608]
[1610406822411,0.50404593,34814.0,34791.0,0.22005608]
[1610406823515,0.13632608,34792.0,34791.0,0.22005608]
[1610406823917,0.50410408,34815.0,34791.0,0.22005608]
[1610406824115,0.5041268,34814.0,34792.0,0.4936]
[1610406824315,0.5041268,34814.0,34791.0,0.22005608]
[1610406824514,0.50408389,34820.0,34798.0,3.3066]
[1610406824815,0.50398945,34831.0,34798.0,3.40478]
[1610406825214,0.50392925,34840.0,34798.0,3.40478]
[1610406825714,0.4188694,34847.0,34830.0,0.13632608]
[1610406825715,0.50368126,34843.0,34830.0,0.13632608]
[1610406826116,0.50362683,34845.0,34830.0,0.11632608]
[1610406826519,0.50334668,34848.0,34830.0,0.11632608]
[1610406826918,0.50331725,34850.0,34829.0,0.0968]
[1610406827417,0.50331361,34849.0,34809.0,0.08508]
[1610406827818,0.50305274,34843.0,34809.0,0.08508]
[1610406828018,0.50305274,34843.0,34824.0,0.13632608]
[1610406828517,0.60362976,34845.0,34809.0,0.08508]
[1610406828518,0.5030545,34845.0,34809.0,0.08508]
[1610406828719,0.50273312,34843.0,34809.0,0.06508]
[1610406829121,0.10253,34843.0,34809.0,0.06508]
[1610406830019,0.10253,34843.0,34826.0,0.10263]
[1610406831122,0.5021561,34840.0,34809.0,0.06508]
[1610406831521,0.11296,34827.0,34809.0,0.06508]
[1610406832221,0.11296,34827.0,34798.0,0.09818]
[1610406832523,0.11296,34827.0,34784.0,3.6803]
[1610406833323,0.50195798,34826.0,34784.0,3.6803]
[1610406833725,0.50189447,34820.0,34784.0,3.6803]
[1610406833924,0.59655447,34820.0,34784.0,3.6803]
[1610406834125,0.09466,34820.0,34799.0,0.13632608]
[1610406835526,0.09466,34820.0,34789.0,0.07434]
[1610406836027,0.04466,34820.0,34789.0,0.07434]
[1610406836228,0.04466,34820.0,34784.0,3.6803]
[1610406836627,0.50175576,34819.0,34791.0,0.13632608]
[1610406837127,0.50173536,34817.0,34791.0,0.13632608]
[1610406837527,0.04466,34820.0,34791.0,0.22725608]
[1610406838329,0.04466,34820.0,34791.0,0.09093]
[1610406838529,0.13632608,34792.0,34788.0,0.13632608]
[1610406838730,0.07388,34797.0,34788.0,0.13632608]
[1610406840630,0.07388,34797.0,34796.0,0.13632608]
[1610406841132,0.54610973,34820.0,34785.0,0.09199]
[1610406841331,0.04466,34820.0,34792.0,0.07406]
[1610406841531,0.61428217,34827.0,34785.0,0.09199]
[1610406841933,0.50132454,34824.0,34785.0,0.09199]
[1610406842432,0.11296,34827.0,34785.0,0.09199]
[1610406842631,0.78612684,34831.0,34806.0,0.13632608]
[1610406842832,0.285,34831.0,34806.0,0.13632608]
[1610406843433,0.50106252,34833.0,34806.0,0.08211]
[1610406843631,0.60124163,34835.0,34806.0,0.08211]
[1610406843632,0.50079868,34838.0,34806.0,0.08211]
[1610406844032,1.50075299,34845.0,34806.0,0.08211]
[1610406844634,0.50041237,34847.0,34829.0,0.13632608]
[1610406845132,0.50041237,34847.0,34815.0,0.07509]
[1610406845432,0.11071,34847.0,34815.0,0.07509]
[1610406847135,0.11071,34847.0,34822.0,3.46109]
[1610406847434,0.2863,34866.0,34822.0,3.46109]
[1610406847435,0.13632608,34852.0,34846.0,0.13632608]
[1610406847834,0.499405,34868.0,34840.0,0.07802]
[1610406848034,0.49934673,34870.0,34840.0,0.07802]
[1610406848336,0.49931455,34874.0,34840.0,0.07802]
[1610406848740,0.49909031,34875.0,34840.0,0.07802]
[1610406849136,0.49906774,34876.0,34840.0,0.07802]
[1610406849335,0.13632608,34845.0,34844.0,0.13632608]
[1610406849739,0.07176,34853.0,34844.0,0.13632608]
[1610406849937,0.08337,34865.0,34844.0,0.13632608]
[1610406851040,0.08337,34865.0,34842.0,0.09838]
[1610406851546,0.08337,34865.0,34849.0,0.13632608]
[1610406852146,0.08337,34865.0,34842.0,0.09838]
[1610406854345,0.13632608,34858.0,34855.0,0.13632608]
[1610406854544,0.13632608,34858.0,34842.0,0.09838]
[1610406854947,0.1119,34872.0,34842.0,0.10905]
[1610406856046,0.49988001,34881.0,34842.0,0.10905]
[1610406856245,0.13632608,34867.0,34866.0,0.13632608]
[1610406856647,0.13632608,34867.0,34842.0,0.10905]
[1610406856849,0.13632608,34867.0,34851.0,4.3585]
[1610406857748,0.13632608,34867.0,34842.0,0.10905]
[1610406857949,0.07685,34870.0,34842.0,0.10905]
[1610406858951,0.07685,34870.0,34843.0,0.13632608]
[1610406859854,0.07685,34870.0,34844.0,4.4986]
[1610406860053,0.500761,34881.0,34844.0,4.4986]
[1610406860255,0.10899,34884.0,34844.0,4.4986]
[1610406861058,0.10899,34884.0,34861.0,0.13632608]
[1610406861255,0.10899,34884.0,34861.0,0.22382608]
[1610406861657,0.10899,34884.0,34861.0,0.0875]
[1610406862457,0.78021237,34885.0,34861.0,0.0875]
[1610406862857,0.50223973,34882.0,34861.0,0.0875]
[1610406863057,0.13632608,34862.0,34861.0,0.0875]
[1610406863660,0.13632608,34862.0,34861.0,0.6349]
[1610406864662,0.07778,34882.0,34861.0,0.6349]
[1610406864863,0.50392022,34886.0,34861.0,0.0875]
[1610406865066,0.50392022,34886.0,34878.0,0.13632608]
[1610406865266,0.94050555,34900.0,34878.0,0.13632608]
[1610406865267,0.50384481,34892.0,34878.0,0.13632608]
[1610406865763,0.5049571,34898.0,34876.0,0.07316]
[1610406866564,0.50596621,34893.0,34876.0,0.07316]
[1610406866765,0.59029621,34893.0,34876.0,0.07316]
[1610406866965,0.13632608,34877.0,34876.0,0.07316]
[1610406867267,0.08433,34893.0,34876.0,0.07316]
[1610406867465,0.08433,34893.0,34876.0,0.57646]
[1610406867868,0.08433,34893.0,34876.0,0.07316]
[1610406868067,0.50653649,34902.0,34887.0,4.5976]
[1610406868567,0.50693793,34909.0,34887.0,4.5976]
[1610406868967,0.50695407,34911.0,34903.0,0.13632608]
[1610406869370,0.50692444,34912.0,34903.0,0.13632608]
[1610406869770,0.50691392,34914.0,34903.0,0.13632608]
[1610406870070,0.50689756,34916.0,34893.0,0.08139]
[1610406870270,0.50689756,34916.0,34903.0,0.6643]
[1610406870572,0.50680004,34918.0,34903.0,0.6643]
[1610406870872,0.50679682,34922.0,34903.0,0.6643]
[1610406871071,0.13632608,34912.0,34911.0,0.13632608]
[1610406871673,0.13632608,34912.0,34911.0,0.13458524]
[1610406872073,0.06943,34917.0,34911.0,0.13458524]
[1610406872274,0.06943,34917.0,34911.0,3.98698524]
[1610406872473,0.50653899,34924.0,34911.0,3.98698524]
[1610406872674,0.74284508,34928.0,34911.0,3.98698524]
[1610406872675,0.50621083,34928.0,34911.0,3.98698524]
[1610406872975,0.50621083,34928.0,34924.0,0.13632608]
[1610406873176,0.74374534,34930.0,34911.0,3.8524]